bitfinex-derivatives/quotes_BTCF0:USTF0_20240905
["timestamp","ask_amount","ask_price","bid_price","bid_amount"]
[1725543083829,0.096038,56797.0,56796.0,0.003]
[1725543084221,0.0455,56801.0,56796.0,0.003]
[1725543084423,0.0455,56801.0,56800.0,0.004]
[1725543084619,0.4055,56801.0,56800.0,0.004]
[1725543084826,1.53366,56801.0,56800.0,0.004]
[1725543085430,1.53366,56801.0,56796.0,0.001]
[1725543085624,0.088044,56793.0,56776.0,0.3608]
[1725543085829,0.088075,56772.0,56764.0,0.3608]
[1725543086035,0.36,56772.0,56769.0,0.3608]
[1725543086224,0.36,56772.0,56764.0,0.3608]
[1725543086425,0.088076,56772.0,56764.0,0.3608]
[1725543086627,0.00026254,56774.0,56764.0,0.3608]
[1725543086826,0.08833454,56774.0,56773.0,0.004]
[1725543087223,0.088086,56765.0,56764.0,0.3608]
[1725543087434,0.3608,56773.0,56764.0,0.3608]
[1725543087645,0.448874,56773.0,56772.0,0.004]
[1725543088134,1.577314,56773.0,56772.0,0.004]
[1725543088527,0.088085,56766.0,56764.0,0.3608]
[1725543088728,0.088077,56771.0,56765.0,0.088085]
[1725543089038,0.088077,56771.0,56770.0,0.004]
[1725543089432,0.088077,56771.0,56770.0,0.3648]
[1725543089736,0.00026254,56774.0,56773.0,0.088074]
[1725543089934,0.00026254,56774.0,56773.0,0.004]
[1725543089935,0.08833554,56774.0,56773.0,0.004]
[1725543090345,1.57673554,56774.0,56764.0,0.36172]
[1725543090636,0.088086,56765.0,56764.0,0.3628]
[1725543091141,0.088086,56765.0,56764.0,0.7228]
[1725543091351,0.088079,56770.0,56764.0,0.7208]
[1725543091544,0.088079,56770.0,56769.0,0.3648]
[1725543092130,0.176158,56770.0,56769.0,0.004]
[1725543092450,0.176158,56770.0,56762.0,0.0002641]
[1725543092451,0.176178,56763.0,56762.0,1e-07]
[1725543092631,0.985067,56763.0,56762.0,1e-07]
[1725543092831,0.088117,56745.0,56744.0,0.3608]
[1725543093026,0.3608,56749.0,56744.0,0.3608]
[1725543093235,0.090117,56745.0,56744.0,0.3608]
[1725543093437,0.002,56745.0,56739.0,0.36092]
[1725543093740,0.3628,56740.0,56731.0,0.3608]
[1725543093944,0.002,56732.0,56731.0,0.3608]
[1725543094141,0.002,56740.0,56731.0,0.3608]
[1725543094346,0.002,56740.0,56739.0,0.002]
[1725543094541,0.002,56740.0,56739.0,0.362]
[1725543095236,0.00026434,56741.0,56739.0,0.362]
[1725543095432,0.00026434,56741.0,56740.0,0.002]
[1725543095630,0.08811,56750.0,56744.0,0.00073566]
[1725543095835,0.08811,56750.0,56749.0,0.002]
[1725543096047,0.61675,56750.0,56749.0,0.002]
[1725543096248,0.088117,56745.0,56744.0,0.00073566]
[1725543096447,0.7228,56745.0,56727.0,0.3608]
[1725543096639,0.084138,56732.0,56727.0,0.3608]
[1725543096844,0.082138,56732.0,56727.0,0.3608]
[1725543097036,0.08214,56731.0,56727.0,0.3608]
[1725543097345,0.002,56728.0,56727.0,0.3608]
[1725543098042,0.00026311,56744.0,56727.0,0.3608]
[1725543098043,0.076142,56729.0,56727.0,0.3608]
[1725543098351,0.088144,56728.0,56727.0,0.3608]
[1725543099048,0.3608,56740.0,56727.0,0.3608]
[1725543099345,0.001,56732.0,56731.0,0.007]
[1725543099539,0.089138,56732.0,56731.0,0.007]
[1725543099733,0.001,56728.0,56727.0,0.3678]
[1725543099938,0.003,56728.0,56727.0,0.3678]
[1725543100439,0.002,56728.0,56727.0,0.3678]
[1725543100648,0.3618,56740.0,56727.0,1.85664]
[1725543100649,0.001,56740.0,56727.0,1.85664]
[1725543100948,0.088144,56728.0,56727.0,0.7278]
[1725543101247,0.089144,56728.0,56727.0,0.3818]
[1725543102044,0.088144,56728.0,56727.0,0.3678]
[1725543102245,0.089144,56728.0,56727.0,0.3808]
[1725543102450,0.089144,56728.0,56727.0,0.7408]
[1725543103037,0.001,56728.0,56727.0,0.7408]
[1725543103238,0.001,56740.0,56727.0,1.86964]
[1725543103552,0.001,56740.0,56736.0,0.3608]
[1725543104345,0.088123,56742.0,56736.0,0.3608]
[1725543104547,0.088118,56745.0,56741.0,0.7228]
[1725543104736,0.088118,56745.0,56743.0,0.002]
[1725543104938,0.088118,56745.0,56741.0,0.810923]
[1725543104939,0.088118,56745.0,56741.0,0.811963]
[1725543105146,0.002,56742.0,56741.0,0.810923]
[1725543105835,0.002,56742.0,56741.0,0.7228]
[1725543106036,0.090122,56742.0,56741.0,0.7228]
[1725543106241,0.090122,56742.0,56741.0,0.7258]
[1725543106543,0.090122,56742.0,56741.0,0.7298]
[1725543107548,0.03721793,56742.0,56741.0,0.7298]
[1725543107936,0.00026311,56744.0,56742.0,0.088121]
[1725543108145,0.00026311,56744.0,56743.0,0.002]
[1725543108550,0.3608,56764.0,56743.0,0.002]
[1725543108551,0.3608,56764.0,56743.0,0.618801]
[1725543108745,0.3608,56764.0,56749.0,0.3608]
[1725543108746,0.08811,56750.0,56749.0,0.3608]
[1725543108939,0.17622,56750.0,56749.0,0.3608]
[1725543110149,0.17622,56750.0,56743.0,0.001]
[1725543110150,0.088119,56744.0,56743.0,0.001]
[1725543110348,0.088119,56744.0,56743.0,0.361]
[1725543110546,0.448904,56754.0,56744.0,0.088119]
[1725543110744,0.088119,56744.0,56743.0,0.36]
[1725543110951,0.176242,56743.0,56742.0,0.001]
[1725543111160,1.028241,56743.0,56730.0,0.3608]
[1725543111451,0.178254,56739.0,56730.0,0.3608]
[1725543111641,0.175254,56739.0,56734.0,0.36]
[1725543112041,0.175254,56739.0,56730.0,0.3608]
[1725543112042,0.087127,56739.0,56730.0,0.3608]
[1725543112246,0.087127,56739.0,56733.0,0.36]
[1725543112553,1.304014,56739.0,56738.0,0.00626434]
[1725543112942,0.088147,56726.0,56725.0,0.448948]
[1725543113153,0.088147,56726.0,56725.0,0.3608]
[1725543113154,0.002,56726.0,56725.0,0.3608]
[1725543113538,0.088144,56728.0,56725.0,0.448948]
[1725543113739,0.001,56739.0,56727.0,0.090145]
[1725543114045,0.00126434,56739.0,56731.0,0.3608]
[1725543114355,0.17751834,56739.0,56738.0,0.006]
[1725543114550,0.70627834,56739.0,56738.0,0.006]
[1725543114747,1.30627834,56739.0,56738.0,0.006]
[1725543114955,0.088138,56732.0,56731.0,0.3608]
[1725543115148,0.088138,56732.0,56729.0,0.36]
[1725543115149,0.088141,56730.0,56729.0,0.36]
[1725543115351,0.088144,56728.0,56727.0,0.01626434]
[1725543115553,0.088144,56728.0,56715.0,0.36]
[1725543115554,0.088175,56708.0,56707.0,0.3608]
[1725543115856,0.092175,56708.0,56707.0,0.3608]
[1725543116052,0.091175,56708.0,56707.0,0.3608]
[1725543116747,0.088183,56703.0,56702.0,0.00026434]
[1725543116953,0.537166,56703.0,56702.0,3.4e-07]
[1725543117143,1.670246,56703.0,56702.0,3.4e-07]
[1725543117347,1.670246,56703.0,56676.0,0.10556294]
[1725543117348,0.4829,56703.0,56679.0,0.06911671]
[1725543117548,0.4829,56703.0,56678.0,0.00370533]
[1725543117549,0.08822,56679.0,56678.0,0.00370533]
[1725543117756,0.088222,56678.0,56675.0,0.3608]
[1725543117955,0.004,56680.0,56675.0,0.3608]
[1725543117956,0.004,56676.0,56675.0,0.3608]
[1725543118154,0.088224,56677.0,56675.0,0.3608]
[1725543118357,0.004,56680.0,56670.0,0.05257517]
[1725543118358,0.088232,56672.0,56670.0,0.05257517]
[1725543118550,0.7248,56671.0,56658.0,0.05231059]
[1725543118863,0.7248,56671.0,56648.0,0.36]
[1725543118864,0.088263,56652.0,56648.0,0.36]
[1725543119055,0.088263,56652.0,56644.0,0.00377757]
[1725543119056,0.7216,56649.0,56644.0,0.05231059]
[1725543119362,0.7216,56649.0,56628.0,0.08823]
[1725543119363,0.004,56645.0,56628.0,0.08823]
[1725543119555,0.449098,56630.0,56628.0,0.08823]
[1725543119758,0.449098,56630.0,56612.0,0.36]
[1725543119759,0.004,56629.0,56612.0,0.36]
[1725543120059,0.004,56613.0,56612.0,0.36]
[1725543120253,0.004,56613.0,56612.0,0.3608]
[1725543120455,0.004,56613.0,56612.0,0.7208]
[1725543120763,0.00026483,56626.0,56612.0,1.85072]
[1725543120968,0.00026483,56626.0,56622.0,0.36]
[1725543121179,0.00026483,56626.0,56621.0,0.3608]
[1725543121464,0.088313,56619.0,56618.0,0.00026483]
[1725543121667,0.453113,56619.0,56618.0,0.00026483]
[1725543122454,0.004,56619.0,56618.0,0.00026483]
[1725543122953,0.3608,56625.0,56618.0,0.00026483]
[1725543122954,0.30294113,56625.0,56618.0,0.00026483]
[1725543123150,0.3608,56620.0,56618.0,0.00026483]
[1725543123351,0.088313,56619.0,56618.0,0.00026483]
[1725543123853,1.938993,56619.0,56618.0,8.3e-07]
[1725543124371,0.449113,56619.0,56618.0,8.3e-07]
[1725543124567,1.938993,56619.0,56618.0,8.3e-07]
[1725543124877,1.938993,56619.0,56615.0,8.3e-07]
[1725543124878,0.088318,56616.0,56615.0,8.3e-07]
[1725543125172,0.088324,56612.0,56610.0,2.5e-07]
[1725543125374,0.004,56611.0,56610.0,2.5e-07]
[1725543126566,1.49472,56611.0,56610.0,2.5e-07]
[1725543126754,0.3648,56611.0,56610.0,2.5e-07]
[1725543127367,0.31176425,56611.0,56610.0,2.5e-07]
[1725543127570,0.006,56616.0,56610.0,0.00400025]
[1725543127762,0.006,56616.0,56614.0,0.36]
[1725543128075,0.008,56619.0,56614.0,0.7208]
[1725543128273,0.008,56619.0,56618.0,0.36]
[1725543128775,0.3608,56624.0,56618.0,0.88988]
[1725543128966,0.3608,56624.0,56619.0,0.3608]
[1725543129161,0.088295,56631.0,56623.0,0.36]
[1725543129565,0.3608,56633.0,56621.0,0.36172]
[1725543129884,0.088311,56621.0,56619.0,8.3e-07]
[1725543130173,0.3648,56620.0,56619.0,8.3e-07]
[1725543130376,0.35759187,56608.0,56603.0,0.0022922]
[1725543130560,0.7256,56608.0,56603.0,0.0022922]
[1725543130763,0.088335,56605.0,56603.0,0.0022922]
[1725543130960,0.004,56604.0,56603.0,0.0022922]
[1725543131772,1.134,56604.0,56603.0,2e-07]
[1725543132075,0.004,56604.0,56603.0,2e-07]
[1725543132269,0.00026483,56609.0,56603.0,1.1300002]
[1725543132568,0.00026483,56609.0,56608.0,0.36]
[1725543133077,0.00026483,56609.0,56608.0,1.12996]
[1725543134368,0.088258,56655.0,56608.0,1.12996]
[1725543134369,0.3608,56627.0,56608.0,1.12996]
[1725543134578,0.088305,56625.0,56622.0,0.36]
[1725543134774,0.088311,56621.0,56618.0,0.3608]
[1725543135079,0.01,56626.0,56618.0,0.9608]
[1725543135263,0.3608,56633.0,56627.0,0.0883]
[1725543135467,0.3608,56633.0,56632.0,0.36]
[1725543135665,0.3608,56633.0,56632.0,0.362]
[1725543135861,0.3608,56633.0,56632.0,0.36]
[1725543136163,0.088264,56651.0,56640.0,0.08828]
[1725543136362,0.088264,56651.0,56632.0,1.3208]
[1725543136363,0.449058,56655.0,56650.0,0.002]
[1725543136570,0.449057,56655.0,56654.0,0.002]
[1725543136786,0.449057,56655.0,56650.0,0.002]
[1725543137087,0.002,56651.0,56650.0,0.002]
[1725543137375,0.011,56651.0,56650.0,0.002]
[1725543137577,0.011,56651.0,56650.0,0.3628]
[1725543138166,0.016,56651.0,56650.0,0.3638]
[1725543138370,0.016,56651.0,56650.0,0.003]
[1725543138768,0.016,56651.0,56650.0,0.89336]
[1725543138964,0.00026483,56656.0,56655.0,0.088257]
[1725543139184,0.00026483,56656.0,56655.0,1.340577]
[1725543139976,0.00026483,56656.0,56655.0,0.3628]
[1725543141187,0.00226483,56656.0,56655.0,0.3628]
[1725543141685,0.00226483,56656.0,56655.0,0.3638]
[1725543141686,0.01126483,56656.0,56655.0,0.3638]
[1725543142576,0.01126483,56656.0,56655.0,1.25332]
[1725543142769,0.4088,56677.0,56655.0,2.21412]
[1725543142970,0.3608,56664.0,56655.0,0.3648]
[1725543143170,0.3608,56664.0,56655.0,0.3628]
[1725543143382,0.3608,56672.0,56655.0,0.3628]
[1725543143383,0.088251,56659.0,56655.0,0.3628]
[1725543143683,0.005,56656.0,56655.0,0.3618]
[1725543143906,0.088253,56658.0,56655.0,0.3618]
[1725543144179,0.00026483,56663.0,56657.0,0.002]
[1725543144180,0.088246,56662.0,56657.0,0.002]
[1725543144380,0.00026483,56663.0,56661.0,0.002]
[1725543144581,0.08850983,56663.0,56662.0,0.002]
[1725543144782,0.617686,56662.0,56661.0,0.002]
[1725543144965,1.219686,56662.0,56661.0,0.002]
[1725543145383,1.219686,56662.0,56655.0,0.002]
[1725543145573,0.811856,56656.0,56655.0,0.002]
[1725543145773,0.811856,56656.0,56651.0,0.00026483]
[1725543145774,0.176524,56652.0,56651.0,0.00026483]
[1725543146081,0.488262,56652.0,56651.0,0.00026483]
[1725543146399,0.08828,56641.0,56633.0,0.3608]
[1725543146677,0.3608,56638.0,56636.0,0.088287]
[1725543146883,0.08828,56641.0,56637.0,0.088285]
[1725543147082,0.3608,56639.0,56637.0,0.088285]
[1725543147379,0.3608,56645.0,56643.0,0.088276]
[1725543147380,0.00026483,56644.0,56643.0,0.088276]
[1725543147589,0.00026483,56644.0,56643.0,0.090276]
[1725543147773,0.00026483,56644.0,56643.0,0.088276]
[1725543148273,0.3608,56650.0,56646.0,0.088271]
[1725543148469,0.3608,56650.0,56649.0,0.002]
[1725543148675,0.088264,56652.0,56649.0,0.090267]
[1725543148975,0.088264,56652.0,56640.0,0.3628]
[1725543148976,0.3608,56655.0,56651.0,0.002]
[1725543149186,0.088262,56652.0,56651.0,0.002]
[1725543149388,0.088262,56652.0,56647.0,0.00026483]
[1725543149586,0.002,56648.0,56647.0,0.00026483]
[1725543150283,0.002,56648.0,56647.0,0.08853483]
[1725543150879,0.008,56648.0,56647.0,0.08953483]
[1725543151087,0.008,56648.0,56647.0,0.00126483]
[1725543151285,0.096268,56648.0,56647.0,0.00126483]
[1725543151485,0.008,56648.0,56647.0,0.08953483]
[1725543151686,0.011,56648.0,56647.0,0.08953483]
[1725543153190,0.007,56648.0,56647.0,0.08953483]
[1725543153394,0.007,56648.0,56647.0,0.44953483]
[1725543153581,0.013,56648.0,56647.0,0.45053483]
[1725543153786,0.011,56648.0,56647.0,0.44953483]
[1725543153981,0.013,56648.0,56647.0,0.45053483]
[1725543154188,0.013,56648.0,56647.0,0.09053483]
[1725543154384,0.016,56648.0,56647.0,0.09053483]
[1725543154593,0.104268,56648.0,56647.0,0.05457542]
[1725543154882,0.088268,56648.0,56647.0,0.00226483]
[1725543155087,0.088268,56648.0,56647.0,0.00126483]
[1725543155387,1.313136,56648.0,56647.0,0.00126483]
[1725543155581,1.224868,56648.0,56647.0,0.00126483]
[1725543155784,1.294868,56648.0,56647.0,0.00126483]
[1725543155987,0.694868,56648.0,56647.0,0.00126483]
[1725543156293,1.300868,56648.0,56647.0,0.00026483]
[1725543156485,0.171268,56648.0,56647.0,0.00026483]
[1725543156884,0.614536,56648.0,56647.0,0.00126483]
[1725543157086,0.526268,56648.0,56647.0,0.00226483]
[1725543157284,0.166268,56648.0,56647.0,0.00226483]
[1725543157685,0.254536,56648.0,56647.0,0.00226483]
[1725543157886,0.176558,56641.0,56640.0,0.002]
[1725543158094,0.176558,56641.0,56628.0,0.06911671]
[1725543158095,0.088293,56632.0,56628.0,0.05231059]
[1725543158290,0.3618,56629.0,56624.0,0.06231059]
[1725543158490,0.002,56625.0,56624.0,0.098306]
[1725543158696,0.3598,56629.0,56624.0,0.15061659]
[1725543158914,0.3598,56629.0,56624.0,0.01]
[1725543159090,0.448098,56629.0,56628.0,0.002]
[1725543159293,0.88956,56629.0,56624.0,0.01]
[1725543159496,0.090304,56625.0,56624.0,0.01]
[1725543160197,0.090304,56625.0,56624.0,0.110306]
[1725543160198,0.002,56625.0,56624.0,0.110306]
[1725543160402,0.001,56629.0,56628.0,0.088299]
[1725543160700,0.00026483,56632.0,56628.0,0.088299]
[1725543160701,0.00026483,56632.0,56631.0,0.088295]
[1725543160999,0.00026483,56632.0,56631.0,0.52105326]
[1725543161185,0.002,56641.0,56631.0,1.71540107]
[1725543161387,0.44906,56654.0,56651.0,0.088264]
[1725543161583,0.3608,56662.0,56653.0,0.3628]
[1725543161793,0.449047,56662.0,56661.0,0.002]
[1725543161987,0.449047,56662.0,56657.0,0.088253]
[1725543162195,0.002,56658.0,56655.0,0.36]
[1725543162406,0.08850683,56665.0,56664.0,0.088243]
[1725543162407,0.00026483,56665.0,56664.0,0.088243]
[1725543162590,0.00026483,56665.0,56664.0,0.090243]
[1725543162788,0.7695,56687.0,56664.0,1.49144]
[1725543162789,0.07015875,56687.0,56664.0,1.49144]
[1725543162992,0.10449044,56696.0,56664.0,1.49144]
[1725543162993,0.3608,56678.0,56673.0,0.36]
[1725543163295,0.07015875,56688.0,56674.0,0.36]
[1725543163497,0.43015875,56693.0,56687.0,0.002]
[1725543163693,0.07015875,56693.0,56692.0,0.002]
[1725543163997,0.448999,56693.0,56687.0,0.002]
[1725543164498,0.3608,56692.0,56687.0,0.002]
[1725543164699,0.002,56688.0,56687.0,0.002]
[1725543165085,0.002,56688.0,56684.0,0.00026483]
[1725543165287,0.002,56685.0,56684.0,0.00026483]
[1725543165597,0.00026483,56696.0,56684.0,0.00026483]
[1725543165598,0.00026483,56696.0,56694.0,0.088196]
[1725543165907,0.00026483,56696.0,56695.0,0.7228]
[1725543166497,0.00026483,56696.0,56695.0,0.002]
[1725543167199,0.00026483,56696.0,56695.0,0.004]
[1725543167200,0.00326483,56696.0,56695.0,0.004]
[1725543167398,0.36406483,56696.0,56695.0,0.004]
[1725543167783,0.00326483,56696.0,56695.0,0.004]
[1725543168189,0.00326483,56696.0,56695.0,0.3638]
[1725543168492,0.00326483,56696.0,56695.0,0.3648]
[1725543168493,0.00426483,56696.0,56695.0,0.3648]
[1725543168700,1.13342483,56696.0,56695.0,0.004]
[1725543168894,0.53342483,56696.0,56695.0,0.004]
[1725543169391,1.13342483,56696.0,56695.0,0.004]
[1725543169998,0.53342483,56696.0,56695.0,0.004]
[1725543170403,0.00326483,56696.0,56695.0,0.004]
[1725543170699,0.00526483,56696.0,56695.0,0.004]
[1725543171097,0.00226483,56696.0,56695.0,0.004]
[1725543171299,0.00226483,56696.0,56695.0,0.53316]
[1725543171604,0.6889,56711.0,56695.0,1.13316]
[1725543171797,0.3608,56711.0,56710.0,0.002]
[1725543172604,0.44897,56711.0,56710.0,0.002]
[1725543172794,0.3608,56711.0,56710.0,0.090172]
[1725543172994,0.3608,56711.0,56710.0,0.450172]
[1725543173302,0.00026392,56716.0,56715.0,0.088164]
[1725543173494,0.00026392,56716.0,56715.0,0.810964]
[1725543174292,0.00026392,56716.0,56715.0,0.450964]
[1725543174602,0.00326392,56716.0,56715.0,0.452964]
[1725543176703,0.00326392,56716.0,56715.0,0.3648]
[1725543176905,0.00326392,56716.0,56715.0,0.004]
[1725543176906,0.45222592,56716.0,56715.0,0.004]
[1725543177300,0.09142592,56716.0,56715.0,0.004]
[1725543177606,1.66934792,56716.0,56715.0,0.004]
[1725543177795,0.36,56709.0,56696.0,0.088193]
[1725543178001,0.450978,56706.0,56693.0,0.3608]
[1725543178302,0.090178,56706.0,56698.0,0.08819]
[1725543178498,0.090178,56706.0,56693.0,0.448998]
[1725543178499,1.219218,56706.0,56693.0,0.448998]
[1725543178697,0.002,56694.0,56693.0,0.3608]
[1725543178911,0.088182,56704.0,56693.0,0.3608]
[1725543179113,0.002,56706.0,56703.0,0.002]
[1725543179295,0.72252001,56709.0,56703.0,0.002]
[1725543179296,0.088181,56704.0,56703.0,0.002]
[1725543179801,0.807981,56704.0,56703.0,0.002]
[1725543179993,0.447981,56704.0,56703.0,0.002]
[1725543180400,0.00026458,56709.0,56703.0,0.002]
[1725543180699,0.00026458,56709.0,56708.0,0.002]
[1725543180700,0.08843758,56709.0,56708.0,0.002]
[1725543181806,0.088189,56699.0,56686.0,0.088208]
[1725543182006,0.088189,56699.0,56685.0,0.3608]
[1725543182007,0.448989,56699.0,56695.0,0.088195]
[1725543182216,0.002,56699.0,56698.0,0.44845458]
[1725543182399,0.002,56699.0,56698.0,1.93837458]
[1725543182599,0.002,56699.0,56698.0,0.80925458]
[1725543182903,0.00026458,56709.0,56708.0,0.088175]
[1725543183102,0.01226458,56709.0,56708.0,0.089175]
[1725543183307,0.01226458,56709.0,56708.0,0.003]
[1725543183607,0.01226458,56709.0,56708.0,0.451175]
[1725543184804,0.10043758,56709.0,56708.0,0.003]
[1725543185198,0.01226458,56709.0,56708.0,0.091175]
[1725543185399,0.02626458,56709.0,56708.0,0.091175]
[1725543185799,0.3608,56736.0,56708.0,1.220215]
[1725543186010,0.00188001,56734.0,56729.0,0.3608]
[1725543186206,0.3608,56736.0,56732.0,0.088137]
[1725543186404,0.3608,56736.0,56735.0,0.362]
[1725543187001,0.03419999,56738.0,56735.0,0.7228]
[1725543187213,0.4058,56754.0,56737.0,0.3628]
[1725543187214,0.3608,56754.0,56737.0,0.3628]
[1725543187415,0.545,56769.0,56757.0,0.088099]
[1725543187416,0.07195875,56769.0,56757.0,0.088099]
[1725543187709,0.3608,56767.0,56765.0,0.36]
[1725543188016,0.0854701,56785.0,56765.0,0.36]
[1725543188017,0.15821175,56787.0,56774.0,0.088072]
[1725543188201,0.15821175,56787.0,56765.0,0.7208]
[1725543188202,0.43095875,56788.0,56786.0,0.364]
[1725543188507,0.0854701,56795.0,56786.0,0.364]
[1725543188508,0.088041,56795.0,56787.0,0.004]
[1725543188709,0.3608,56791.0,56787.0,0.004]
[1725543188932,0.3608,56791.0,56786.0,0.364]
[1725543189209,0.448847,56791.0,56786.0,0.004]
[1725543189415,0.36252001,56796.0,56786.0,0.004]
[1725543189706,0.448838,56796.0,56795.0,0.004]
[1725543190114,1.577038,56796.0,56795.0,0.004]
[1725543190406,1.577038,56796.0,56790.0,0.00026411]
[1725543190407,0.088046,56791.0,56790.0,0.00026411]
[1725543190611,0.448846,56791.0,56790.0,0.00026411]
[1725543190806,0.977086,56791.0,56790.0,0.00026411]
[1725543191216,0.448846,56791.0,56790.0,0.00026411]
[1725543191512,1.579086,56791.0,56790.0,0.00026411]
[1725543191699,1.579086,56791.0,56786.0,0.001]
[1725543192013,0.7208,56787.0,56767.0,0.36]
[1725543192225,0.3608,56779.0,56769.0,0.3608]
[1725543192400,0.3608,56787.0,56783.0,0.36]
[1725543192716,0.3608,56787.0,56778.0,0.36]
[1725543192717,0.088058,56784.0,56778.0,0.36]
[1725543192916,0.088058,56784.0,56779.0,0.00026411]
[1725543193219,0.3608,56787.0,56783.0,0.36]
[1725543193511,0.0022625,56791.0,56786.0,0.3648]
[1725543193709,0.0022625,56791.0,56790.0,0.004]
[1725543194708,0.0002625,56791.0,56790.0,0.004]
[1725543195304,0.75825875,56810.0,56790.0,0.004]
[1725543195305,0.3608,56812.0,56790.0,0.604]
[1725543195504,0.3608,56812.0,56811.0,0.364]
[1725543195906,0.3608,56812.0,56811.0,0.004]
[1725543196109,1.48888,56812.0,56811.0,0.004]
[1725543196510,0.88888,56812.0,56811.0,0.00360001]
[1725543196716,1.48888,56812.0,56811.0,0.00460001]
[1725543197524,1.48888,56812.0,56811.0,0.00360001]
[1725543197815,1.48888,56812.0,56811.0,0.00460001]
[1725543198021,1.48888,56812.0,56811.0,0.00560001]
[1725543198022,0.3638,56812.0,56811.0,0.00560001]
[1725543198320,1.49188,56812.0,56811.0,0.00560001]
[1725543198616,0.088021,56807.0,56785.0,0.3608]
[1725543198815,0.3608,56793.0,56785.0,0.3608]
[1725543199007,0.088051,56788.0,56785.0,0.3608]
[1725543199209,0.3608,56794.0,56787.0,0.36]
[1725543199421,0.3608,56794.0,56793.0,0.004]
[1725543199833,0.3608,56794.0,56788.0,0.00026411]
[1725543200312,0.088048,56790.0,56788.0,0.00026411]
[1725543200715,0.616328,56790.0,56788.0,0.00026411]
[1725543200927,0.088051,56788.0,56772.0,0.36]
[1725543201222,0.088051,56788.0,56767.0,0.36]
[1725543201223,0.3608,56780.0,56767.0,0.36]
[1725543201517,0.088073,56774.0,56772.0,0.36]
[1725543201724,0.3608,56775.0,56759.0,0.36]
[1725543202020,0.448881,56769.0,56761.0,0.00026411]
[1725543202207,0.088091,56763.0,56761.0,0.00026411]
[1725543202609,0.3608,56762.0,56761.0,0.00026411]
[1725543202811,0.088091,56763.0,56761.0,0.00026411]
[1725543203018,0.088091,56763.0,56762.0,0.004]
[1725543203907,0.3608,56769.0,56762.0,0.004]
[1725543204113,0.3608,56763.0,56762.0,0.004]
[1725543204618,0.088091,56762.0,56761.0,0.00026411]
[1725543205009,0.3626,56763.0,56761.0,0.00126411]
[1725543205010,0.0048,56763.0,56761.0,0.00126411]
[1725543205216,0.003,56763.0,56762.0,0.004]
[1725543205521,1.13152,56763.0,56762.0,0.004]
[1725543205725,1.13152,56763.0,56762.0,0.005]
[1725543206419,1.13152,56763.0,56762.0,0.006]
[1725543207118,0.88852,56762.0,56744.0,0.3608]
[1725543207318,0.088092,56762.0,56753.0,0.36]
[1725543207520,0.088092,56762.0,56755.0,0.448902]
[1725543207715,0.003,56763.0,56758.0,0.36]
[1725543207916,0.003,56763.0,56762.0,0.3658]
[1725543208109,0.003,56763.0,56762.0,0.089091]
[1725543208315,0.003,56763.0,56762.0,0.449891]
[1725543208511,0.00026411,56766.0,56762.0,0.449891]
[1725543208820,0.004,56763.0,56762.0,0.090091]
[1725543209024,0.004,56763.0,56762.0,0.002]
[1725543209417,0.00026411,56766.0,56762.0,0.001]
[1725543209612,0.00026411,56766.0,56765.0,0.3648]
[1725543209917,0.00026411,56766.0,56765.0,0.004]
[1725543210116,0.08834911,56766.0,56765.0,0.004]
[1725543210313,1.21682911,56766.0,56765.0,0.004]
[1725543210513,0.61682911,56766.0,56765.0,0.004]
[1725543210721,1.21682911,56766.0,56765.0,0.004]
[1725543210925,0.08834911,56766.0,56765.0,0.004]
[1725543211122,0.08834911,56766.0,56765.0,0.005]
[1725543211820,0.00026411,56766.0,56765.0,0.005]
[1725543212023,0.00026411,56766.0,56765.0,0.093086]
[1725543212223,0.00026411,56766.0,56765.0,0.005]
[1725543212428,0.00126411,56766.0,56765.0,0.006]
[1725543212930,0.08934911,56766.0,56765.0,0.006]
[1725543213124,0.00126411,56766.0,56765.0,0.005]
[1725543213324,0.00126411,56766.0,56765.0,0.093086]
[1725543213720,0.00126411,56766.0,56765.0,0.005]
[1725543213922,0.00126411,56766.0,56765.0,0.004]
[1725543214222,0.08934911,56766.0,56765.0,0.005]
[1725543215129,1.30591411,56766.0,56765.0,0.005]
[1725543215427,1.30591411,56766.0,56752.0,0.3608]
[1725543215428,0.0881,56756.0,56752.0,0.3608]
[1725543216226,0.3608,56763.0,56755.0,0.36026411]
[1725543216525,0.00126411,56766.0,56762.0,0.004]
[1725543216825,0.00026411,56766.0,56765.0,0.092086]
[1725543217023,0.08834911,56766.0,56765.0,0.004]
[1725543217327,1.30491411,56766.0,56765.0,0.004]
[1725543217522,1.30691411,56766.0,56765.0,0.004]
[1725543218033,0.09034911,56766.0,56765.0,0.004]
[1725543218215,0.00226411,56766.0,56765.0,0.092086]
[1725543218417,0.00226411,56766.0,56765.0,0.093086]
[1725543219214,0.0497,56785.0,56765.0,0.093086]
[1725543219215,0.07015875,56797.0,56781.0,0.088062]
[1725543219417,0.3608,56799.0,56789.0,0.3608]
[1725543219730,0.3608,56799.0,56798.0,0.002]
[1725543220027,0.3608,56799.0,56790.0,0.3608]
[1725543220224,0.3608,56799.0,56792.0,0.36]
[1725543220929,0.00026411,56800.0,56799.0,0.088034]
[1725543221126,0.00026411,56800.0,56799.0,0.090034]
[1725543221333,0.3281,56821.0,56799.0,1.49096]
[1725543221521,0.3608,56822.0,56809.0,0.7208]
[1725543221522,0.088003,56819.0,56809.0,0.7208]